bitfinex-derivatives/quotes_BTCF0:USTF0_20250504
["timestamp","ask_amount","ask_price","bid_price","bid_amount"]
[1746365809673,0.2116891,95375.0,95374.0,0.7611667]
[1746365811377,0.2116891,95375.0,95374.0,1.0039569]
[1746365813680,0.2116891,95375.0,95374.0,0.7904902]
[1746365814779,0.2116891,95375.0,95374.0,0.8204902]
[1746365816382,0.2116891,95375.0,95374.0,0.7904902]
[1746365818480,0.2116891,95375.0,95374.0,0.4296902]
[1746365818680,0.2116891,95375.0,95374.0,0.7904902]
[1746365819489,0.2116891,95375.0,95374.0,0.8204902]
[1746365820285,0.2116891,95375.0,95374.0,0.7904902]
[1746365824788,0.2116891,95375.0,95374.0,0.8204902]
[1746365825890,0.2433891,95375.0,95374.0,0.8204902]
[1746365835694,0.2433891,95375.0,95374.0,0.7904902]
[1746365836497,0.2433891,95375.0,95374.0,0.8204902]
[1746365838202,0.2433891,95375.0,95374.0,1.08751787]
[1746365842086,0.2433891,95375.0,95374.0,0.8204902]
[1746365843496,0.0337,95375.0,95374.0,0.8204902]
[1746365843702,0.002,95375.0,95374.0,0.8204902]
[1746365843892,0.244788,95375.0,95374.0,0.8204902]
[1746365846002,0.01027174,95389.0,95388.0,0.2096594]
[1746365846308,0.0332,95405.0,95394.0,0.2096463]
[1746365846610,0.2620307,95404.0,95403.0,0.2096243]
[1746365846809,0.2620307,95404.0,95403.0,0.7948243]
[1746365847008,0.3253307,95404.0,95403.0,0.7948243]
[1746365847204,0.3253307,95404.0,95403.0,0.9128243]
[1746365847599,0.0633,95404.0,95403.0,0.9128243]
[1746365847804,0.07996162,95412.0,95407.0,0.0524039]
[1746365848008,0.07996162,95412.0,95411.0,0.5704089]
[1746365848203,0.07996162,95412.0,95411.0,0.7304089]
[1746365848709,0.07996162,95412.0,95411.0,0.5704089]
[1746365848903,0.28956832,95412.0,95411.0,0.5704089]
[1746365849103,0.29356832,95412.0,95411.0,0.6884089]
[1746365850315,0.29656832,95412.0,95411.0,0.6884089]
[1746365850816,0.29356832,95412.0,95411.0,0.6884089]
[1746365851017,0.2176067,95412.0,95411.0,0.6894089]
[1746365851717,0.2503067,95412.0,95411.0,0.6894089]
[1746365860422,0.2503067,95412.0,95411.0,0.7210089]
[1746365863823,0.2503067,95412.0,95411.0,0.7851289]
[1746365864423,0.2503067,95412.0,95411.0,0.4243289]
[1746365864721,0.2503067,95412.0,95411.0,0.7851289]
[1746365867528,0.2503067,95412.0,95411.0,0.8166289]
[1746365869830,0.2503067,95412.0,95411.0,0.4558289]
[1746365870030,0.2503067,95412.0,95411.0,0.9566289]
[1746365870931,0.2503067,95412.0,95411.0,0.5958289]
[1746365871133,0.2503067,95412.0,95411.0,0.9566289]
[1746365873429,0.2503067,95412.0,95411.0,0.8166289]
[1746365874131,0.2503067,95412.0,95411.0,0.9666289]
[1746365874523,0.2176067,95412.0,95411.0,0.9666289]
[1746365876234,0.2176067,95412.0,95411.0,2.4666289]
[1746365876538,0.0302,95419.0,95415.0,0.0524]
[1746365876833,0.2095967,95417.0,95416.0,0.3228947]
[1746365877034,0.2095967,95417.0,95416.0,0.4728947]
[1746365878122,0.01,95419.0,95418.0,0.2095935]
[1746365878325,0.01,95419.0,95418.0,0.3595935]
[1746365879133,0.005,95419.0,95418.0,0.4775935]
[1746365879333,0.2095913,95419.0,95418.0,0.5299914]
[1746365880025,0.2155913,95419.0,95418.0,0.5299914]
[1746365880221,0.006,95419.0,95418.0,0.5299914]
[1746365880735,0.2155913,95419.0,95418.0,0.5299914]
[1746365881330,0.006,95419.0,95418.0,0.5299914]
[1746365881536,0.0523903,95433.0,95422.0,0.0523956]
[1746365881730,0.2619631,95429.0,95428.0,0.2095694]
[1746365881930,0.2619631,95429.0,95428.0,0.2736894]
[1746365882129,0.2619631,95429.0,95428.0,0.3916894]
[1746365882329,0.2619631,95429.0,95428.0,0.5516894]
[1746365883038,0.2679631,95429.0,95428.0,0.5526894]
[1746365883545,0.2739631,95429.0,95428.0,0.5536894]
[1746365884539,0.3044631,95429.0,95428.0,0.5536894]
[1746365885236,0.3044631,95429.0,95428.0,0.3936894]
[1746365886241,0.3044631,95429.0,95428.0,0.7544894]
[1746365887244,0.3044631,95429.0,95428.0,0.54492]
[1746365888140,0.3044631,95429.0,95428.0,0.42692]
[1746365888643,0.3044631,95429.0,95428.0,0.45822]
[1746365889642,0.3044631,95429.0,95428.0,0.6677916]
[1746365890233,0.3373631,95429.0,95428.0,0.6677916]
[1746365891342,0.3373631,95429.0,95428.0,0.6036716]
[1746365891651,0.3373631,95429.0,95428.0,0.6679116]
[1746365892243,0.3373631,95429.0,95428.0,0.3071116]
[1746365895743,0.3373631,95429.0,95428.0,0.09754]
[1746365896439,0.3373631,95429.0,95428.0,0.002]
[1746365896640,0.5021551,95429.0,95428.0,0.002]
[1746365897140,0.6201551,95429.0,95428.0,0.002]
[1746365897443,1.1201551,95429.0,95428.0,0.002]
[1746365899645,1.4809551,95429.0,95428.0,0.002]
[1746365900745,1.2309551,95429.0,95428.0,0.002]
[1746365908648,1.1261631,95429.0,95428.0,0.002]
[1746365908850,0.9061631,95429.0,95428.0,0.002]
[1746365914349,0.7881631,95429.0,95428.0,0.002]
[1746365920855,0.9981631,95429.0,95428.0,0.002]
[1746365922244,0.7881631,95429.0,95428.0,0.002]
[1746365924457,0.7881631,95429.0,95419.0,0.0316]
[1746365924458,0.0523938,95427.0,95419.0,0.0316]
[1746365924757,0.5703891,95420.0,95419.0,0.0316]
[1746365924957,0.8703891,95420.0,95419.0,0.0316]
[1746365925649,0.2095957,95417.0,95416.0,0.05247089]
[1746365925849,0.3895957,95417.0,95416.0,0.05247089]
[1746365926561,0.4852957,95417.0,95416.0,0.05247089]
[1746365926859,0.4832957,95417.0,95416.0,0.05247089]
[1746365927658,0.4862957,95417.0,95416.0,0.05347089]
[1746365928256,0.4892957,95417.0,95416.0,0.05447089]
[1746365929175,0.4892957,95417.0,95416.0,0.002]
[1746365935981,0.6792957,95417.0,95416.0,0.002]
[1746365947480,0.2096067,95412.0,95411.0,0.0313]
[1746365947681,0.2096331,95400.0,95399.0,0.2135321]
[1746365947988,0.9904331,95400.0,95399.0,0.2135321]
[1746365948188,0.7804331,95400.0,95399.0,0.2135321]
[1746365948693,0.2086463,95394.0,95393.0,0.26702767]
[1746365948892,0.2786463,95394.0,95393.0,0.33212767]
[1746365949393,0.2776463,95394.0,95393.0,0.45012767]
[1746365949595,0.2876463,95394.0,95393.0,0.45012767]
[1746365950294,0.2866463,95394.0,95393.0,0.45012767]
[1746365950786,0.29305873,95394.0,95393.0,0.45012767]
[1746365950986,0.29505873,95394.0,95393.0,0.45312767]
[1746365953296,0.29505873,95394.0,95393.0,0.1861]
[1746365955500,0.28505873,95394.0,95393.0,0.1861]
[1746365960295,0.31725873,95394.0,95393.0,0.1861]
[1746365961808,0.28505873,95394.0,95393.0,0.1861]
[1746365963012,0.30505873,95394.0,95393.0,0.1861]
[1746365963204,0.33615873,95394.0,95393.0,0.1861]
[1746365963400,0.31615873,95394.0,95393.0,0.1861]
[1746365965210,0.31615873,95394.0,95393.0,0.2171]
[1746365966608,0.34705873,95394.0,95393.0,0.2171]
[1746365968002,0.28505873,95394.0,95393.0,0.2171]
[1746365968407,0.31695873,95394.0,95393.0,0.2171]
[1746365968608,0.34905873,95394.0,95393.0,0.2171]
[1746365969010,0.34905873,95394.0,95393.0,0.43065609]
[1746365969905,0.36905873,95394.0,95393.0,0.43065609]
[1746365973404,0.36905873,95394.0,95393.0,0.39965609]
[1746365976207,0.36905873,95394.0,95393.0,0.1861]
[1746365978622,0.36905873,95394.0,95393.0,0.1528]
[1746365985212,0.36905873,95394.0,95393.0,0.0348]
[1746365986129,0.36905873,95394.0,95393.0,0.1528]
[1746365989124,0.36905873,95394.0,95393.0,0.0348]
[1746365995634,0.36905873,95394.0,95387.0,0.23819107]
[1746365995635,0.2096594,95388.0,95387.0,0.23819107]
[1746365995833,0.4996594,95388.0,95387.0,0.23819107]
[1746365996427,0.5662594,95388.0,95387.0,0.23819107]
[1746365997333,0.5672594,95388.0,95387.0,0.24119107]
[1746365998131,0.5682594,95388.0,95387.0,0.24419107]
[1746365998334,0.8830954,95388.0,95387.0,0.003]
[1746365998523,0.2096814,95378.0,95377.0,0.32151838]
[1746365998729,0.8904814,95378.0,95377.0,0.32151838]
[1746365999530,0.9526814,95378.0,95377.0,0.32451838]
[1746365999737,0.9546814,95378.0,95377.0,0.32651838]
[1746366000740,0.9546814,95378.0,95377.0,0.0065727]
[1746366003835,0.5938814,95378.0,95377.0,0.0065727]
[1746366004037,0.9546814,95378.0,95377.0,0.0065727]
[1746366005943,0.5938814,95378.0,95377.0,0.0065727]
[1746366006139,0.9546814,95378.0,95377.0,0.0065727]
[1746366006339,0.9546814,95378.0,95377.0,0.0367727]
[1746366012936,0.6746814,95378.0,95377.0,0.0689727]
[1746366014438,0.002,95378.0,95377.0,0.9943043]
[1746366014644,0.2116814,95378.0,95377.0,1.0043043]
[1746366015349,0.2116814,95378.0,95377.0,1.1223043]
[1746366015549,0.2116814,95378.0,95377.0,0.7574563]
[1746366016848,0.2116814,95378.0,95377.0,0.5477727]
[1746366017051,0.2116814,95378.0,95377.0,0.1869727]
[1746366017747,0.2516814,95378.0,95377.0,0.1869727]
[1746366017947,0.3022814,95378.0,95377.0,0.1869727]
[1746366018851,0.3022814,95378.0,95377.0,0.1547727]
[1746366022543,0.3322814,95378.0,95377.0,0.1547727]
[1746366023146,0.3322814,95378.0,95377.0,0.0367727]
[1746366023845,0.3322814,95378.0,95377.0,0.0065727]
[1746366024046,0.5622814,95378.0,95377.0,0.0065727]
[1746366026048,0.8122814,95378.0,95377.0,0.0065727]
[1746366026249,0.5622814,95378.0,95377.0,0.0065727]
[1746366032862,0.9122814,95378.0,95377.0,0.0065727]
[1746366051664,0.7026,95378.0,95375.0,0.00104849]
[1746366051857,0.7026,95378.0,95375.0,9e-08]
[1746366051858,0.2096858,95376.0,95375.0,9e-08]
[1746366052162,1.2876858,95376.0,95375.0,9e-08]
[1746366052366,1.7670858,95376.0,95375.0,9e-08]
[1746366053266,1.7680858,95376.0,95375.0,9e-08]
[1746366053659,1.7690858,95376.0,95375.0,9e-08]
[1746366053860,1.7283858,95376.0,95375.0,9e-08]
[1746366054161,1.7690858,95376.0,95375.0,9e-08]
[1746366054368,0.209699,95370.0,95369.0,0.16028854]
[1746366054571,1.410499,95370.0,95369.0,0.16028854]
[1746366055366,0.2097012,95369.0,95368.0,0.16028854]
[1746366055568,0.9797012,95369.0,95368.0,0.16028854]
[1746366055770,1.0726012,95369.0,95368.0,0.16028854]
[1746366056465,1.0736012,95369.0,95368.0,0.16028854]
[1746366056866,1.0746012,95369.0,95368.0,0.16028854]
[1746366060062,1.1746012,95369.0,95368.0,0.02588854]
[1746366060381,1.7110012,95369.0,95368.0,4e-08]
[1746366060875,0.2097078,95366.0,95365.0,4e-08]
[1746366061063,1.5349878,95366.0,95365.0,4e-08]
[1746366061264,1.6529878,95366.0,95365.0,4e-08]
[1746366061574,1.7529878,95366.0,95365.0,4e-08]
[1746366061777,1.7688878,95366.0,95365.0,4e-08]
[1746366062079,1.8164878,95366.0,95365.0,4e-08]
[1746366062266,1.7164878,95366.0,95365.0,4e-08]
[1746366062764,1.7174878,95366.0,95365.0,4e-08]
[1746366063075,1.8174878,95366.0,95365.0,4e-08]
[1746366063472,1.8184878,95366.0,95365.0,4e-08]
[1746366063875,1.7184878,95366.0,95365.0,4e-08]
[1746366064075,2.1368878,95366.0,95365.0,4e-08]
[1746366064878,0.2097188,95361.0,95360.0,0.0635]
[1746366065067,0.7497188,95361.0,95360.0,0.0635]
[1746366065679,0.8135188,95361.0,95360.0,0.0635]
[1746366065980,0.2097408,95351.0,95350.0,0.21345938]
[1746366066277,0.6005408,95351.0,95350.0,0.21345938]
[1746366067180,0.6015408,95351.0,95350.0,0.33145938]
[1746366068082,0.6025408,95351.0,95350.0,0.33145938]
[1746366068379,0.6325408,95351.0,95350.0,0.33145938]
[1746366068782,0.6325408,95351.0,95350.0,0.118]
[1746366072472,0.6632408,95351.0,95350.0,0.118]
[1746366072675,0.8932408,95351.0,95350.0,0.118]
[1746366072881,0.6632408,95351.0,95350.0,0.118]
[1746366073978,0.2097474,95348.0,95347.0,0.03998913]
[1746366074179,0.2897474,95348.0,95347.0,0.15798913]
[1746366074779,0.2976917,95348.0,95347.0,0.15798913]
[1746366075178,0.3315917,95348.0,95347.0,0.15798913]
[1746366076587,0.3325917,95348.0,95347.0,0.15798913]
[1746366076977,0.3046474,95348.0,95347.0,0.15798913]
[1746366077177,0.2446474,95348.0,95347.0,0.18018913]
[1746366079689,0.2117474,95348.0,95347.0,0.18018913]
[1746366085781,0.2517474,95348.0,95347.0,0.118]
[1746366085983,0.2839474,95348.0,95347.0,0.118]
[1746366086990,0.2839474,95348.0,95347.0,0.33145938]
[1746366089286,0.29188332,95348.0,95347.0,0.33145938]
[1746366091693,0.29188332,95348.0,95347.0,0.118]
[1746366095797,0.29188332,95348.0,95347.0,0.33145938]
[1746366098299,0.65188332,95348.0,95347.0,0.21345938]
[1746366100300,0.2097518,95346.0,95340.0,0.2670934]
[1746366100498,0.3497518,95346.0,95340.0,0.2670934]
[1746366100699,0.3497518,95346.0,95341.0,0.0332]
[1746366100894,0.4125518,95346.0,95341.0,0.0332]
[1746366101094,0.4125518,95346.0,95345.0,0.11904882]
[1746366101496,0.4135518,95346.0,95345.0,0.11904882]
[1746366103104,0.4155518,95346.0,95345.0,0.11904882]
[1746366109108,0.4155518,95346.0,95345.0,0.00104882]
[1746366109907,0.4155518,95346.0,95345.0,0.21488864]
[1746366110208,0.4155518,95346.0,95345.0,0.33288864]
[1746366112111,0.4155518,95346.0,95345.0,0.21488864]
[1746366113108,0.3955518,95346.0,95345.0,0.21488864]
[1746366114814,0.8055518,95346.0,95345.0,0.21488864]
[1746366115709,0.8055518,95346.0,95345.0,0.00104882]
[1746366117213,0.3955518,95346.0,95345.0,0.00104882]
[1746366117511,0.4055518,95346.0,95345.0,0.00104882]
[1746366120413,0.3427518,95346.0,95345.0,0.00104882]
[1746366120618,0.2127518,95346.0,95345.0,0.01104882]
[1746366121014,0.2127518,95346.0,95345.0,0.07214882]
[1746366121215,0.2127518,95346.0,95345.0,0.18014882]
[1746366121514,0.2127518,95346.0,95345.0,0.20234882]
[1746366129125,0.2127518,95346.0,95345.0,0.18014882]
[1746366129327,0.2762518,95346.0,95345.0,0.18014882]
[1746366129528,0.2762518,95346.0,95345.0,0.14924882]
[1746366130028,0.2762518,95346.0,95345.0,0.41634222]
[1746366130920,0.2862518,95346.0,95345.0,0.41634222]
[1746366132326,0.2862518,95346.0,95345.0,0.38614222]
[1746366133127,0.2862518,95346.0,95345.0,0.00104882]
[1746366137519,0.3162518,95346.0,95345.0,0.00104882]
[1746366138726,1.0462518,95346.0,95345.0,0.00104882]
[1746366139131,1.1642518,95346.0,95345.0,0.00104882]
[1746366139925,0.7542518,95346.0,95345.0,0.00104882]
[1746366142834,1.1150518,95346.0,95345.0,0.00104882]
[1746366144227,0.9970518,95346.0,95345.0,0.00104882]
[1746366145032,1.2470518,95346.0,95345.0,0.00104882]
[1746366155151,1.6078518,95346.0,95345.0,0.00104882]
[1746366155549,0.2097584,95343.0,95342.0,8e-08]
[1746366155752,1.1213584,95343.0,95342.0,8e-08]
[1746366155947,1.3246424,95343.0,95342.0,8e-08]
[1746366156140,0.7977584,95343.0,95342.0,8e-08]
[1746366156745,0.7997584,95343.0,95342.0,8e-08]
[1746366157151,0.6817584,95343.0,95342.0,8e-08]
[1746366158353,0.6827584,95343.0,95342.0,8e-08]
[1746366158753,0.6817584,95343.0,95342.0,8e-08]
[1746366158953,0.7131584,95343.0,95342.0,8e-08]
[1746366160247,0.7431584,95343.0,95342.0,8e-08]
[1746366162247,1.0731584,95343.0,95342.0,8e-08]
[1746366162454,1.0308584,95343.0,95342.0,8e-08]
[1746366162654,1.0731584,95343.0,95342.0,8e-08]
[1746366162854,1.0308584,95343.0,95342.0,8e-08]
[1746366163058,1.0731584,95343.0,95342.0,8e-08]
[1746366163457,1.0308584,95343.0,95342.0,8e-08]
[1746366163658,1.0731584,95343.0,95342.0,8e-08]
[1746366164055,1.0308584,95343.0,95342.0,8e-08]
[1746366164355,1.0731584,95343.0,95342.0,8e-08]
[1746366164659,1.0308584,95343.0,95342.0,8e-08]
[1746366164858,0.6031584,95343.0,95342.0,8e-08]
[1746366165059,0.8031584,95343.0,95342.0,8e-08]
[1746366175062,0.9657424,95343.0,95342.0,8e-08]
[1746366175262,1.2380424,95343.0,95342.0,8e-08]
[1746366176162,1.3137424,95343.0,95342.0,8e-08]
[1746366176467,1.3560424,95343.0,95342.0,8e-08]
[1746366177168,1.3137424,95343.0,95342.0,8e-08]
[1746366177560,1.3560424,95343.0,95342.0,8e-08]
[1746366177762,1.3137424,95343.0,95342.0,8e-08]
[1746366178059,1.2380424,95343.0,95342.0,8e-08]
[1746366178569,1.6564424,95343.0,95342.0,8e-08]
[1746366179067,1.6183184,95343.0,95342.0,8e-08]
[1746366183562,1.5914184,95343.0,95342.0,8e-08]
[1746366183765,1.6183184,95343.0,95342.0,8e-08]
[1746366184364,0.2097606,95342.0,95341.0,0.02312788]
[1746366184568,1.1910606,95342.0,95341.0,0.02312788]
[1746366184767,1.2765606,95342.0,95341.0,0.02312788]
[1746366184969,1.3225606,95342.0,95341.0,0.02312788]
[1746366185678,1.2919606,95342.0,95341.0,0.02312788]
[1746366185873,1.3225606,95342.0,95341.0,0.02312788]
[1746366186173,1.3225606,95342.0,95341.0,8e-08]
[1746366186374,1.3235606,95342.0,95341.0,8e-08]
[1746366186561,1.2261606,95342.0,95341.0,8e-08]
[1746366187269,1.42944861,95342.0,95341.0,8e-08]
[1746366187470,0.2097804,95333.0,95332.0,0.06669963]
[1746366187671,1.5421804,95333.0,95332.0,0.06669963]
[1746366187868,1.5405804,95333.0,95332.0,0.06669963]
[1746366188170,1.3782804,95333.0,95332.0,0.06669963]
[1746366188374,0.2097936,95327.0,95326.0,0.0543]
[1746366188572,0.2097936,95327.0,95326.0,0.0321]
[1746366188573,0.5997936,95327.0,95326.0,0.0321]
[1746366188772,0.6697936,95327.0,95326.0,0.0321]
[1746366189169,0.7326936,95327.0,95326.0,0.0321]
[1746366189475,0.9526936,95327.0,95326.0,0.0321]
[1746366190377,0.9546936,95327.0,95326.0,0.0321]
[1746366190677,0.9220936,95327.0,95326.0,0.0321]
[1746366190876,0.6120936,95327.0,95326.0,0.0543]
[1746366191079,0.6140936,95327.0,95326.0,0.0543]
[1746366191381,0.6240936,95327.0,95326.0,0.0543]
[1746366192177,0.6140936,95327.0,95326.0,0.0543]
[1746366193383,0.2098288,95311.0,95310.0,0.15125739]
[1746366193679,0.4298288,95311.0,95310.0,0.19674558]
[1746366193879,0.4298288,95311.0,95310.0,0.55166557]
[1746366194279,0.21,95311.0,95310.0,0.55166557]
[1746366194475,0.002,95311.0,95310.0,0.59166557]
[1746366194671,0.3608,95324.0,95310.0,0.59166557]
[1746366194873,0.2098244,95314.0,95313.0,0.2098233]
[1746366195071,0.2498244,95314.0,95313.0,0.2098233]
[1746366195275,0.2498244,95314.0,95313.0,0.3147393]
[1746366195476,0.2498244,95314.0,95313.0,0.104916]
[1746366195675,0.2098244,95314.0,95313.0,0.124916]
[1746366196181,0.2818244,95314.0,95313.0,0.104916]
[1746366197275,0.2838244,95314.0,95313.0,0.104916]
[1746366198571,0.2838244,95314.0,95313.0,0.137516]
[1746366198979,0.2838244,95314.0,95313.0,0.18300276]
[1746366201679,0.2838244,95314.0,95313.0,0.39282716]
[1746366201873,0.2838244,95314.0,95313.0,0.53282716]
[1746366202073,0.2138244,95314.0,95313.0,0.53282716]
[1746366202272,0.2538244,95314.0,95313.0,0.53282716]
[1746366202883,0.2138244,95314.0,95313.0,0.53282716]
[1746366203185,0.2138244,95314.0,95313.0,0.7415095]
[1746366206084,0.2138244,95314.0,95313.0,0.69602274]
[1746366209883,0.2138244,95314.0,95313.0,0.4873404]
[1746366210387,0.2138244,95314.0,95313.0,0.53283475]
[1746366210786,0.2138244,95314.0,95313.0,2.03283475]
[1746366210985,0.2138244,95314.0,95313.0,0.53283475]
[1746366212690,0.2454244,95314.0,95313.0,0.53283475]
[1746366214481,0.2768244,95314.0,95313.0,0.53283475]
[1746366215488,0.262244,95329.0,95328.0,0.2097826]
[1746366215695,0.3146922,95329.0,95328.0,0.2097826]
[1746366215889,0.262255,95324.0,95323.0,0.2097945]
[1746366216085,0.262255,95324.0,95323.0,0.30668781]
[1746366216384,0.262255,95324.0,95323.0,0.41159181]
[1746366216589,0.262255,95324.0,95323.0,0.44299181]
[1746366217090,0.262255,95324.0,95323.0,0.3974985]
[1746366217390,0.264255,95324.0,95323.0,0.3974985]
[1746366217793,0.264255,95324.0,95323.0,0.44298351]
[1746366218392,0.296655,95324.0,95323.0,0.44298351]
[1746366218591,0.328955,95324.0,95323.0,0.44298351]
[1746366218784,0.330955,95324.0,95323.0,0.41158351]
[1746366219794,0.330955,95324.0,95323.0,0.20178901]
[1746366220192,0.330955,95324.0,95323.0,0.41681524]
[1746366220783,0.330955,95324.0,95323.0,0.58112473]
[1746366221193,0.330955,95324.0,95323.0,0.62659988]
[1746366221491,0.330955,95324.0,95323.0,0.58112473]
[1746366221692,0.330955,95324.0,95323.0,0.62659654]
[1746366221897,0.2097833,95333.0,95332.0,0.2097826]
[1746366222083,0.2728791,95334.0,95333.0,0.2097804]
[1746366222288,0.2728791,95334.0,95333.0,0.3911804]
[1746366222681,0.2728791,95334.0,95333.0,0.3597804]
[1746366223087,0.2098002,95324.0,95321.0,0.3608]
[1746366223290,0.2098002,95324.0,95323.0,0.2604819]
[1746366223601,0.2078002,95324.0,95323.0,0.25525807]
[1746366224389,0.2068002,95324.0,95323.0,0.25525807]
[1746366224592,0.2088002,95324.0,95323.0,0.25725807]
[1746366225302,0.2108002,95324.0,95323.0,0.26025807]
[1746366225891,0.2429002,95324.0,95323.0,0.26025807]
[1746366227391,0.2429002,95324.0,95323.0,0.2148024]
[1746366230197,0.2629002,95324.0,95323.0,0.005]
[1746366237802,0.27063442,95324.0,95323.0,0.005]
[1746366238306,0.75063442,95324.0,95323.0,0.005]
[1746366238499,0.2098112,95319.0,95318.0,0.26721847]
[1746366238699,0.8506112,95319.0,95318.0,0.26721847]
[1746366239004,0.8506112,95319.0,95318.0,0.11335696]
[1746366239690,0.9123112,95319.0,95318.0,0.11335696]
[1746366240108,0.9143112,95319.0,95318.0,0.11535696]
[1746366240693,0.9143112,95319.0,95318.0,0.002]
[1746366240897,0.9163112,95319.0,95318.0,0.002]
[1746366253313,1.8249,95319.0,95290.0,0.00157404]
[1746366253515,1.8249,95319.0,95259.0,0.00784859]
[1746366253516,0.0524692,95290.0,95283.0,0.05249]
[1746366253716,0.5706839,95286.0,95283.0,0.05249]
[1746366253915,0.6006839,95286.0,95283.0,0.05249]
[1746366254111,0.3608,95286.0,95283.0,0.05249]
[1746366254315,0.5706839,95286.0,95283.0,0.05249]
[1746366254614,0.5706839,95286.0,95284.0,0.0633]
[1746366254915,0.5706839,95286.0,95285.0,0.03304948]
[1746366255317,0.6326839,95286.0,95285.0,0.00104948]
[1746366255525,0.5726839,95286.0,95285.0,0.00104948]
[1746366255715,0.5726839,95286.0,95285.0,0.21093558]
[1746366255716,0.3628,95286.0,95285.0,0.21093558]
[1746366255911,0.5726839,95286.0,95285.0,0.00104948]
[1746366256324,0.5946839,95286.0,95285.0,0.00104948]
[1746366256824,0.5746839,95286.0,95285.0,0.00104948]
[1746366257123,0.3648,95286.0,95285.0,0.77837358]
[1746366257328,0.5746839,95286.0,95285.0,0.21353948]
[1746366257719,0.5746839,95286.0,95285.0,1.55353948]
[1746366258925,0.5946839,95286.0,95285.0,1.55353948]
[1746366259430,0.2098883,95284.0,95283.0,0.032]
[1746366259626,0.2298883,95284.0,95283.0,0.08449]
[1746366260531,0.2318883,95284.0,95283.0,1.58449]
[1746366260827,0.2338883,95284.0,95283.0,1.58449]
[1746366261229,0.2138883,95284.0,95283.0,1.64449]
[1746366261434,0.2138883,95284.0,95283.0,1.8743805]
[1746366261628,0.2138883,95284.0,95283.0,1.8143805]
[1746366263331,0.0524655,95296.0,95291.0,0.05249]
[1746366263637,0.2623332,95294.0,95293.0,0.05249]
[1746366263822,0.2623332,95294.0,95293.0,0.08399]
[1746366264633,0.2623332,95294.0,95293.0,0.2938585]
[1746366264934,0.2623332,95294.0,95293.0,0.4438585]
[1746366265135,0.2643332,95294.0,95293.0,0.4438585]
[1746366265631,0.2118663,95294.0,95293.0,0.4438585]
[1746366265834,0.2118663,95294.0,95293.0,0.33925623]
[1746366266032,0.2118663,95294.0,95293.0,0.48925623]
[1746366266419,0.2138663,95294.0,95293.0,0.33925623]
[1746366266927,0.004,95294.0,95293.0,0.60419623]
[1746366267132,0.004,95294.0,95293.0,0.65419623]
[1746366267333,0.004,95294.0,95293.0,0.60419623]
[1746366268639,0.004,95294.0,95293.0,0.61209417]
[1746366268835,0.004,95294.0,95293.0,0.60419623]
[1746366270232,0.004,95294.0,95293.0,0.5587985]
[1746366270635,0.004,95294.0,95293.0,0.5915985]
[1746366272741,0.004,95294.0,95293.0,0.73878403]
[1746366275338,0.0654,95310.0,95305.0,0.209842]
[1746366275543,0.21141462,95306.0,95305.0,0.209842]
[1746366275733,0.24391462,95306.0,95305.0,0.209842]
[1746366275934,0.27721462,95306.0,95305.0,0.209842]
[1746366276439,0.27921462,95306.0,95305.0,0.209842]
[1746366276643,0.28121462,95306.0,95305.0,0.209842]
[1746366276838,0.28121462,95306.0,95305.0,0.273242]
[1746366277038,0.29121462,95306.0,95305.0,0.273242]
[1746366278544,0.31121462,95306.0,95305.0,0.273242]
[1746366278744,0.29121462,95306.0,95305.0,0.273242]
[1746366279335,0.29121462,95306.0,95305.0,0.0315]
[1746366279943,0.31121462,95306.0,95305.0,0.0315]
[1746366280136,0.29121462,95306.0,95305.0,0.0315]
[1746366280336,0.29121462,95306.0,95305.0,0.241342]
[1746366280639,0.29121462,95306.0,95305.0,0.0315]
[1746366281029,0.31121462,95306.0,95305.0,0.0315]
[1746366281230,0.29121462,95306.0,95305.0,0.0315]
[1746366281536,0.31121462,95306.0,95305.0,0.0315]
[1746366283345,0.209853,95300.0,95299.0,0.26703109]
[1746366283540,0.219853,95300.0,95299.0,0.26703109]
[1746366284134,0.229853,95300.0,95299.0,0.26703109]
[1746366284336,0.260153,95300.0,95299.0,0.26703109]
[1746366284538,0.295253,95300.0,95299.0,0.29823109]
[1746366285148,0.295253,95300.0,95299.0,0.0312]
[1746366285850,0.297253,95300.0,95299.0,0.003]
[1746366286148,0.415253,95300.0,95299.0,0.003]
[1746366287248,1.496053,95300.0,95299.0,0.003]
[1746366287451,1.600985,95300.0,95299.0,0.003]
[1746366288242,0.2098685,95293.0,95292.0,0.26703109]
[1746366288442,0.9478685,95293.0,95292.0,0.26703109]
[1746366288638,1.0528085,95293.0,95292.0,0.26703109]
[1746366288862,0.2098949,95281.0,95280.0,0.05249]
[1746366289049,0.2598949,95281.0,95280.0,0.05249]
[1746366289250,0.3778949,95281.0,95280.0,0.05249]
[1746366289648,0.4410949,95281.0,95280.0,0.05249]
[1746366289954,0.2099059,95276.0,95275.0,0.05249]
[1746366290142,0.2099059,95276.0,95275.0,0.4433981]
[1746366290450,0.2299059,95276.0,95275.0,0.23349]
[1746366290655,0.2299059,95276.0,95275.0,0.27894769]
[1746366290949,0.2948059,95276.0,95275.0,0.27894769]
[1746366291251,0.29662016,95276.0,95275.0,0.23349]
[1746366293951,0.29862016,95276.0,95275.0,0.23349]
[1746366294954,0.27862016,95276.0,95275.0,0.33349]
[1746366295261,0.27862016,95276.0,95275.0,0.23349]
[1746366295443,0.27862016,95276.0,95275.0,0.4433981]
[1746366296047,0.27862016,95276.0,95275.0,0.23349]
[1746366296648,0.27862016,95276.0,95275.0,0.4433981]
[1746366297153,0.27862016,95276.0,95275.0,0.23349]
[1746366297848,0.27862016,95276.0,95275.0,0.27891485]
[1746366300043,0.27862016,95276.0,95275.0,0.30941485]
[1746366300448,0.27862016,95276.0,95275.0,0.51932295]
[1746366301057,0.30862016,95276.0,95275.0,0.30941485]
[1746366301755,0.30862016,95276.0,95275.0,0.27891485]
[1746366302056,0.29862016,95276.0,95275.0,0.23349]
[1746366302757,0.29862016,95276.0,95275.0,0.04943516]
[1746366303452,1.26713681,95276.0,95272.0,0.00157443]
[1746366303653,0.2099125,95273.0,95272.0,0.00157443]
[1746366303844,0.2399125,95273.0,95272.0,0.00157443]
[1746366304044,0.4079125,95273.0,95272.0,0.00157443]
[1746366305251,0.4099125,95273.0,95272.0,0.00157443]
[1746366306155,0.4119125,95273.0,95272.0,0.00157443]
[1746366307350,0.202,95273.0,95272.0,0.08406443]
[1746366307544,0.122,95273.0,95272.0,0.34397913]
[1746366307858,0.122,95273.0,95272.0,0.29397913]
[1746366308051,0.122,95273.0,95272.0,1.79397913]
[1746366308253,0.6147125,95273.0,95272.0,0.05406443]
[1746366308553,0.2539125,95273.0,95272.0,0.05406443]
[1746366308749,0.2239125,95273.0,95272.0,0.05406443]